fUSD/lending_fUSD_20250118
["ID","MTS","AMOUNT","RATE_DAILY","PERIOD"]
[349486000,1737213044882,-500.0,0.00020447,2]
[349486001,1737213044892,-155.46123,0.0002045,10]
[349486002,1737213044902,-154.839527,0.0002045,10]
[349486003,1737213044911,-154.839527,0.0002045,2]
[349486004,1737213044921,-319.356524,0.0002045,10]
[349486005,1737213044930,-319.356524,0.0002045,2]
[349486006,1737213044939,-500.0,0.00020452,2]
[349486007,1737213044949,-643.82,0.00020458,2]
[349486008,1737213044959,-202.0,0.0002047,2]
[349486009,1737213044968,-700.0,0.0002047,2]
[349486010,1737213044979,-400.0,0.0002047,2]
[349486011,1737213044989,-1350.0,0.0002047,2]
[349486012,1737213044999,-1350.0,0.0002047,2]
[349486013,1737213045008,-1386.27732,0.0002047,2]
[349486014,1737213045018,-1386.27732,0.0002047,2]
[349486015,1737213045028,-639.46097246,0.0002047,4]
[349486016,1737213045037,-180.05125378,0.0002047,4]
[349486017,1737213045046,-321.75397639,0.0002047,4]
[349486018,1737213045055,-150.0,0.0002049,4]
[349486019,1737213045064,-639.46097246,0.00020513,4]
[349486020,1737213045074,-180.05125378,0.00020513,4]
[349486021,1737213045084,-321.75397639,0.00020513,4]
[349486022,1737213045095,-152.0,0.00020514,5]
[349486023,1737213045104,-219.0,0.0002052,2]
[349486024,1737213045114,-250.0,0.00020521,2]
[349486025,1737213045124,-1000.0,0.00020547,14]
[349486026,1737213045133,-154.839527,0.00020547,14]
[349486027,1737213045143,-319.356524,0.00020547,14]
[349486028,1737213045153,-500.0,0.00020547,2]
[349486029,1737213045162,-500.0,0.00020547,2]
[349486030,1737213045171,-500.0,0.00020547,2]
[349486031,1737213045180,-500.0,0.00020547,2]
[349486032,1737213045190,-500.0,0.00020547,2]
[349486033,1737213045199,-500.0,0.00020547,2]
[349486034,1737213045210,-500.0,0.00020547,2]
[349486035,1737213045219,-218.41811993,0.00020547,2]
[349486036,1737213045228,-151.0,0.00020547,2]
[349486037,1737213045237,-177.61,0.00020548,2]
[349486038,1737213045246,-20425.52,0.00020548,2]
[349486039,1737213045255,-639.46097246,0.00020557,4]
[349486040,1737213045265,-180.05125378,0.00020557,4]
[349486041,1737213045274,-321.75397639,0.00020557,4]
[349486042,1737213045284,-150.0,0.00020583,4]
[349486043,1737213045293,-500.0,0.00020584,2]
[349486044,1737213045302,-639.46097246,0.000206,4]
[349486045,1737213045311,-180.05125378,0.000206,4]
[349486046,1737213045321,-321.75397639,0.000206,4]
[349486047,1737213045330,-150.0,0.00020639,4]
[349486048,1737213045339,-639.46097246,0.00020643,4]
[349486049,1737213045348,-180.05125378,0.00020643,4]
[349486050,1737213045357,-321.75397639,0.00020643,4]
[349486051,1737213045367,-150.0,0.00020676,4]
[349486052,1737213045378,-639.46097246,0.00020687,4]
[349486053,1737213045387,-180.05125378,0.00020687,4]
[349486054,1737213045397,-321.75397639,0.00020687,4]
[349486055,1737213045407,-217.0,0.000207,2]
[349486056,1737213045416,-200.0,0.000207,2]
[349486057,1737213045425,-154.14,0.00020708,2]
[349486058,1737213045434,-500.0,0.00020721,2]
[349486059,1737213045444,-154.839527,0.00020725,2]
[349486060,1737213045453,-319.356524,0.00020725,2]
[349486061,1737213045462,-202.0,0.0002073,2]
[349486062,1737213045471,-639.46097246,0.0002073,4]
[349486063,1737213045481,-180.05125378,0.0002073,4]
[349486064,1737213045490,-321.75397639,0.0002073,4]
[349486065,1737213045500,-201.44,0.00020733,2]
[349486066,1737213045509,-176.03,0.00020758,2]
[349486067,1737213045519,-219.0,0.0002076,2]
[349486068,1737213045529,-150.0,0.0002077,4]
[349486069,1737213045538,-639.46097246,0.00020773,4]
[349486070,1737213045548,-180.05125378,0.00020773,4]
[349486071,1737213045557,-321.75397639,0.00020773,4]
[349486072,1737213045567,-170.83,0.00020778,2]
[349486073,1737213045577,-300.0,0.000208,2]
[349486074,1737213045586,-300.0,0.000208,2]
[349486075,1737213045596,-300.0,0.000208,2]
[349486076,1737213045605,-300.0,0.000208,2]
[349486077,1737213045615,-527.30698326,0.000208,2]
[349486078,1737213045624,-639.46097246,0.00020817,4]
[349486079,1737213045634,-180.05125378,0.00020817,4]
[349486080,1737213045643,-321.75397639,0.00020817,4]
[349486081,1737213045653,-1000.0,0.00020821,14]
[349486082,1737213045665,-154.839527,0.00020821,14]
[349486083,1737213045676,-319.356524,0.00020821,14]
[349486084,1737213045685,-7889.68,0.00020822,2]
[349486085,1737213045695,-500.0,0.00020858,2]
[349486086,1737213045704,-639.46097246,0.0002086,4]
[349486087,1737213045714,-180.05125378,0.0002086,4]
[349486088,1737213045723,-321.75397639,0.0002086,4]
[349486089,1737213045733,-2000.0,0.00020862,2]
[349486090,1737213045744,-897.5206,0.00020862,2]
[349486091,1737213045754,-150.0,0.00020863,4]
[349486092,1737213045763,-700.0,0.0002087,2]
[349486093,1737213045772,-400.0,0.0002087,2]
[349486094,1737213045782,-187.39570594,0.00020898,2]
[349486095,1737213045791,-201.32011447,0.000209,2]
[349486096,1737213045800,-639.46097246,0.00020903,4]
[349486097,1737213045810,-180.05125378,0.00020903,4]
[349486098,1737213045819,-321.75397639,0.00020903,4]
[349486099,1737213045829,-152.0,0.00020935,6]
[349486100,1737213045839,-639.46097246,0.00020947,4]
[349486101,1737213045848,-180.05125378,0.00020947,4]
[349486102,1737213045858,-321.75397639,0.00020947,4]
[349486103,1737213045868,-150.0,0.00020956,4]
[349486104,1737213045878,-700.0,0.0002097,2]
[349486105,1737213045887,-400.0,0.0002097,2]
[349486106,1737213045897,-700.0,0.0002097,2]
[349486107,1737213045907,-400.0,0.0002097,2]
[349486108,1737213045916,-700.0,0.0002097,2]
[349486109,1737213045926,-400.0,0.0002097,2]
[349486111,1737213045935,-639.46097246,0.0002099,4]
[349486113,1737213045945,-180.05125378,0.0002099,4]
[349486115,1737213045954,-321.75397639,0.0002099,4]
[349486117,1737213045964,-500.0,0.00020995,2]
[349486118,1737213045973,-259409.29735441,0.00020998,2]
[349486119,1737213045983,-315577.86507414,0.00020998,2]
[349486121,1737213045993,-229.60541799,0.00020998,2]
[349486123,1737213046002,-1350.0,0.00020998,2]
[349486124,1737213046012,-1350.0,0.00020998,2]
[349486126,1737213046022,-1350.0,0.00020998,2]
[349486128,1737213046031,-1350.0,0.00020998,2]
[349486130,1737213046041,-1386.27732,0.00020998,2]
[349486131,1737213046051,-1386.27732,0.00020998,2]
[349486132,1737213046061,-1386.27732,0.00020998,2]
[349486133,1737213046071,-1386.27732,0.00020998,2]
[349486134,1737213046081,-151.0,0.00020998,2]
[349486135,1737213046090,-151.0,0.00020998,2]
[349486136,1737213046100,-381.16220672,0.00021,2]
[349486137,1737213046110,-2431.29,0.00021,2]
[349486138,1737213046119,-10173.61086289,0.00021,2]
[349486139,1737213046129,-100344.17740982,0.00021,2]
[349486140,1737213046139,-2083.0,0.00021,2]
[349486141,1737213046149,-11332.3103655,0.00021,2]
[349486142,1737213046159,-5162.29231772,0.00021,7]
[349486143,1737213046168,-202.0,0.00021,2]
[349486144,1737213046179,-150.0,0.00021,2]
[349486145,1737213046188,-370.0,0.00021,2]
[349486146,1737213046198,-219.0,0.00021,2]
[349486147,1737213046207,-600.0,0.00021,5]
[349486148,1737213046217,-209.0,0.00021,2]
[349486149,1737213046226,-211.0,0.00021,2]
[349486150,1737213046236,-207.0,0.00021,2]
[349486151,1737213046246,-217.0,0.00021,2]
[349486152,1737213046255,-203.0,0.00021,2]
[349486153,1737213046264,-700.0,0.00021,2]
[349486154,1737213046274,-200.0,0.00021,2]
[349486155,1737213046284,-200.0,0.00021,2]
[349486156,1737213046294,-155.46123,0.00021,2]
[349486157,1737213046304,-154.839527,0.00021,2]
[349486158,1737213046313,-319.356524,0.00021,2]
[349486159,1737213046323,-639.46097246,0.00021033,4]
[349486160,1737213046333,-180.05125378,0.00021033,4]
[349486161,1737213046343,-321.75397639,0.00021033,4]
[349486162,1737213046352,-150.0,0.00021049,4]
[349486163,1737213046362,-150.0,0.00021068,4]
[349486164,1737213046371,-350.0,0.00021068,2]
[349486165,1737213046380,-639.46097246,0.00021077,4]
[349486166,1737213046390,-180.05125378,0.00021077,4]
[349486167,1737213046400,-321.75397639,0.00021077,4]
[349486168,1737213046410,-1000.0,0.00021095,14]
[349486169,1737213046419,-370.77,0.00021096,2]
[349486170,1737213046429,-639.46097246,0.0002112,4]
[349486171,1737213046439,-180.05125378,0.0002112,4]
[349486172,1737213046449,-321.75397639,0.0002112,4]
[349486173,1737213046459,-500.0,0.00021132,2]
[349486174,1737213046468,-150.0,0.00021143,4]
[349486175,1737213046478,-639.46097246,0.00021163,4]
[349486176,1737213046487,-180.05125378,0.00021163,4]
[349486177,1737213046497,-321.75397639,0.00021163,4]
[349486178,1737213046506,-639.46097246,0.00021207,4]
[349486179,1737213046515,-180.05125378,0.00021207,4]
[349486180,1737213046525,-321.75397639,0.00021207,4]
[349486181,1737213046535,-150.0,0.00021236,4]
[349486182,1737213046544,-639.46097246,0.0002125,4]
[349486185,1737213046554,-180.05125378,0.0002125,4]
[349486186,1737213046566,-321.75397639,0.0002125,4]
[349486188,1737213046575,-500.0,0.00021269,2]
[349486190,1737213046585,-150.0,0.00021283,4]
[349486192,1737213046594,-639.46097246,0.00021293,4]
[349486194,1737213046603,-180.05125378,0.00021293,4]
[349486196,1737213046612,-321.75397639,0.00021293,4]
[349486197,1737213046622,-150.0,0.00021329,4]
[349486198,1737213046631,-639.46097246,0.00021337,4]
[349486199,1737213046640,-180.05125378,0.00021337,4]
[349486200,1737213046650,-321.75397639,0.00021337,4]
[349486201,1737213046660,-643.82,0.00021347,2]
[349486202,1737213046674,-152.0,0.00021355,7]
[349486203,1737213046683,-1000.0,0.00021369,14]
[349486204,1737213046693,-6031.15,0.0002137,2]
[349486205,1737213046703,-151.0,0.0002137,2]
[349486206,1737213046713,-639.46097246,0.0002138,4]
[349486207,1737213046723,-180.05125378,0.0002138,4]
[349486208,1737213046733,-321.75397639,0.0002138,4]
[349486209,1737213046743,-500.0,0.00021406,2]
[349486210,1737213046754,-150.0,0.00021422,4]
[349486211,1737213046763,-639.46097246,0.00021423,4]
[349486212,1737213046773,-180.05125378,0.00021423,4]
[349486213,1737213046782,-321.75397639,0.00021423,4]
[349486214,1737213046792,-17125.0,0.00021463,7]
[349486215,1737213046802,-1350.0,0.00021463,2]
[349486216,1737213046811,-1350.0,0.00021463,2]
[349486217,1737213046821,-1386.27732,0.00021463,2]
[349486218,1737213046831,-1386.27732,0.00021463,2]
[349486219,1737213046841,-639.46097246,0.00021467,4]
[349486220,1737213046850,-180.05125378,0.00021467,4]
[349486221,1737213046860,-321.75397639,0.00021467,4]
[349486222,1737213046870,-630.23,0.00021492,2]
[349486223,1737213046879,-150.0,0.00021497,4]
[349486224,1737213046889,-2110.0,0.000215,2]
[349486225,1737213046899,-639.46097246,0.0002151,4]
[349486226,1737213046909,-180.05125378,0.0002151,4]
[349486227,1737213046919,-321.75397639,0.0002151,4]
[349486228,1737213046928,-150.0,0.00021516,4]
[349486229,1737213046938,-500.0,0.00021543,2]
[349486230,1737213046948,-500.0,0.00021548,2]
[349486231,1737213046957,-500.0,0.00021548,2]
[349486232,1737213046967,-639.46097246,0.00021553,4]
[349486233,1737213046976,-180.05125378,0.00021553,4]
[349486234,1737213046986,-321.75397639,0.00021553,4]
[349486235,1737213046996,-170.83,0.0002157,2]
[349486236,1737213047006,-639.46097246,0.00021597,4]
[349486237,1737213047016,-180.05125378,0.00021597,4]
[349486238,1737213047026,-321.75397639,0.00021597,4]
[349486239,1737213047036,-150.0,0.00021609,4]
[349486240,1737213047046,-450.0,0.00021616,2]
[349486241,1737213047056,-150.0,0.0002164,4]
[349486242,1737213047067,-639.46097246,0.0002164,4]
[349486243,1737213047078,-180.05125378,0.0002164,4]
[349486244,1737213047088,-321.75397639,0.0002164,4]
[349486245,1737213047098,-150.0,0.0002164,4]
[349486246,1737213047107,-1000.0,0.00021643,14]
[349486247,1737213047117,-500.0,0.0002168,2]
[349486248,1737213047126,-639.46097246,0.00021683,4]
[349486249,1737213047136,-180.05125378,0.00021683,4]
[349486250,1737213047146,-321.75397639,0.00021683,4]
[349486251,1737213047156,-8148.53061405,0.00021694,2]
[349486252,1737213047166,-150.0,0.00021702,4]
[349486253,1737213047177,-639.46097246,0.00021727,4]
[349486254,1737213047187,-180.05125378,0.00021727,4]
[349486255,1737213047196,-321.75397639,0.00021727,4]
[349486256,1737213047206,-639.46097246,0.0002177,4]
[349486257,1737213047216,-180.05125378,0.0002177,4]
[349486258,1737213047225,-321.75397639,0.0002177,4]
[349486259,1737213047235,-152.0,0.00021775,8]
[349486260,1737213047245,-150.0,0.00021795,4]
[349486261,1737213047255,-639.46097246,0.00021813,4]
[349486262,1737213047264,-180.05125378,0.00021813,4]
[349486263,1737213047274,-321.75397639,0.00021813,4]
[349486264,1737213047283,-254.0030418,0.00021817,2]
[349486265,1737213047293,-639.46097246,0.00021857,4]
[349486266,1737213047303,-180.05125378,0.00021857,4]
[349486267,1737213047312,-321.75397639,0.00021857,4]
[349486268,1737213047323,-150.0,0.00021889,4]
[349486269,1737213047332,-639.46097246,0.000219,4]
[349486270,1737213047342,-180.05125378,0.000219,4]
[349486271,1737213047352,-321.75397639,0.000219,4]
[349486272,1737213047362,-201.32011447,0.000219,3]
[349486273,1737213047372,-1000.0,0.00021917,14]
[349486274,1737213047381,-500.0,0.00021917,2]
[349486275,1737213047390,-500.0,0.00021917,2]
[349486276,1737213047400,-500.0,0.00021917,2]
[349486277,1737213047409,-500.0,0.00021917,2]
[349486278,1737213047419,-500.0,0.00021917,2]
[349486279,1737213047428,-500.0,0.00021917,2]
[349486280,1737213047438,-500.0,0.00021917,2]
[349486281,1737213047448,-500.0,0.00021917,2]
[349486282,1737213047457,-500.0,0.00021917,2]
[349486283,1737213047466,-500.0,0.00021917,2]
[349486284,1737213047476,-500.0,0.00021917,2]
[349486285,1737213047486,-500.0,0.00021917,2]
[349486286,1737213047495,-500.0,0.00021917,2]
[349486287,1737213047505,-500.0,0.00021917,2]
[349486288,1737213047514,-500.0,0.00021917,2]
[349486289,1737213047524,-500.0,0.00021917,2]
[349486290,1737213047534,-500.0,0.00021917,2]
[349486291,1737213047543,-500.0,0.00021917,2]
[349486292,1737213047553,-500.0,0.00021917,2]
[349486293,1737213047563,-217.15337371,0.00021917,2]
[349486294,1737213047572,-534.61084197,0.00021917,2]
[349486295,1737213047582,-150.0,0.00021918,2]
[349486296,1737213047591,-1000.0,0.00021918,3]
[349486297,1737213047729,-1000.0,0.00021918,3]
[349486298,1737213047740,-1000.0,0.00021918,3]
[349486299,1737213047750,-1000.0,0.00021918,3]
[349486300,1737213047760,-1000.0,0.00021918,3]
[349486301,1737213047769,-1000.0,0.00021918,3]
[349486302,1737213047779,-1000.0,0.00021918,3]
[349486303,1737213047789,-1000.0,0.00021918,3]
[349486304,1737213047799,-1000.0,0.00021918,3]
[349486305,1737213047808,-1000.0,0.00021918,3]
[349486306,1737213047818,-1000.0,0.00021918,3]
[349486307,1737213047834,-1000.0,0.00021918,3]
[349486308,1737213047844,-1000.0,0.00021918,3]
[349486309,1737213047853,-1000.0,0.00021918,3]
[349486310,1737213047863,-1000.0,0.00021918,3]
[349486311,1737213047872,-1000.0,0.00021918,3]
[349486312,1737213047883,-1000.0,0.00021918,3]
[349486313,1737213047893,-1000.0,0.00021918,3]
[349486314,1737213047902,-1000.0,0.00021918,3]
[349486315,1737213047912,-1021.0,0.00021918,3]
[349486316,1737213047922,-150.0,0.00021918,2]
[349486317,1737213047932,-150.0,0.00021926,4]
[349486318,1737213047942,-639.46097246,0.00021943,4]
[349486319,1737213047951,-180.05125378,0.00021943,4]
[349486320,1737213047961,-321.75397639,0.00021943,4]
[349486321,1737213047970,-150.0,0.00021982,4]
[349486322,1737213047980,-639.46097246,0.00021987,4]
[349486323,1737213047990,-180.05125378,0.00021987,4]
[349486324,1737213047999,-321.75397639,0.00021987,4]
[349486325,1737213048010,-6067.39072657,0.00022,15]
[349486326,1737213048019,-2008.0,0.00022,30]
[349486327,1737213048030,-370.0,0.00022,2]
[349486328,1737213048039,-2110.0,0.00022,2]
[349486329,1737213048049,-639.46097246,0.0002203,4]
[349486330,1737213048059,-180.05125378,0.0002203,4]
[349486331,1737213048069,-321.75397639,0.0002203,4]
[349486332,1737213048081,-438.23,0.00022055,2]
[349486333,1737213048092,-639.46097246,0.00022073,4]
[349486334,1737213048102,-180.05125378,0.00022073,4]
[349486335,1737213048112,-321.75397639,0.00022073,4]
[349486336,1737213048122,-150.0,0.00022075,4]
[349486337,1737213048132,-639.46097246,0.00022117,4]
[349486338,1737213048142,-180.05125378,0.00022117,4]
[349486339,1737213048152,-321.75397639,0.00022117,4]
[349486340,1737213048162,-150.0,0.00022144,30]
[349486341,1737213048172,-150.0,0.00022144,30]
[349486342,1737213048182,-150.0,0.00022144,30]
[349486343,1737213048191,-150.0,0.00022144,30]
[349486344,1737213048201,-1463.57173244,0.00022144,30]
[349486345,1737213048211,-10322.0816067,0.00022144,30]
[349486346,1737213048220,-640.42205314,0.00022144,30]
[349486347,1737213048230,-1000.17035788,0.00022144,30]
[349486348,1737213048239,-639.46097246,0.0002216,4]
[349486349,1737213048249,-180.05125378,0.0002216,4]
[349486350,1737213048259,-321.75397639,0.0002216,4]
[349486351,1737213048269,-550.0,0.00022164,2]
[349486352,1737213048278,-150.0,0.00022168,4]
[349486353,1737213048288,-5929.64123363,0.00022185,2]
[349486354,1737213048298,-1000.0,0.00022191,14]
[349486355,1737213048308,-437.34,0.00022192,2]
[349486356,1737213048318,-152.0,0.00022195,9]
[349486357,1737213048332,-2431.29,0.000222,7]
[349486358,1737213048343,-639.46097246,0.00022203,4]
[349486359,1737213048354,-180.05125378,0.00022203,4]
[349486360,1737213048364,-321.75397639,0.00022203,4]
[349486361,1737213048374,-639.46097246,0.00022247,4]
[349486362,1737213048383,-180.05125378,0.00022247,4]
[349486363,1737213048394,-321.75397639,0.00022247,4]
[349486364,1737213048404,-150.0,0.00022262,4]
[349486365,1737213048414,-1476.35,0.00022279,2]
[349486366,1737213048423,-505.0,0.00022289,30]
[349486367,1737213048433,-639.46097246,0.0002229,4]
[349486368,1737213048444,-180.05125378,0.0002229,4]
[349486369,1737213048454,-321.75397639,0.0002229,4]
[349486370,1737213048463,-151.0,0.00022302,2]
[349486371,1737213048473,-241.59141749,0.00022309,5]
[349486372,1737213048483,-500.0,0.00022333,2]
[349486373,1737213048493,-500.0,0.00022333,2]
[349486374,1737213048503,-500.0,0.00022333,2]
[349486375,1737213048513,-500.0,0.00022333,2]
[349486376,1737213048523,-500.0,0.00022333,2]
[349486377,1737213048532,-500.0,0.00022333,2]
[349486378,1737213048542,-500.0,0.00022333,2]
[349486379,1737213048551,-500.0,0.00022333,2]
[349486380,1737213048561,-500.0,0.00022333,2]
[349486381,1737213048573,-500.0,0.00022333,2]
[349486382,1737213048584,-500.0,0.00022333,2]
[349486383,1737213048594,-500.0,0.00022333,2]
[349486384,1737213048604,-500.0,0.00022333,2]
[349486385,1737213048613,-500.0,0.00022333,2]
[349486386,1737213048623,-500.0,0.00022333,2]
[349486387,1737213048632,-500.0,0.00022333,2]
[349486388,1737213048642,-500.0,0.00022333,2]
[349486389,1737213048652,-500.0,0.00022333,2]
[349486390,1737213048663,-500.0,0.00022333,2]
[349486391,1737213048675,-500.0,0.00022333,2]
[349486392,1737213048685,-500.0,0.00022333,2]
[349486393,1737213048694,-500.0,0.00022333,2]
[349486394,1737213048705,-500.0,0.00022333,2]
[349486395,1737213048715,-500.0,0.00022333,2]
[349486396,1737213048724,-500.0,0.00022333,2]
[349486397,1737213048733,-500.0,0.00022333,2]
[349486398,1737213048744,-500.0,0.00022333,2]
[349486399,1737213048754,-500.0,0.00022333,2]
[349486400,1737213048763,-500.0,0.00022333,2]
[349486401,1737213048772,-500.0,0.00022333,2]
[349486402,1737213048782,-500.0,0.00022333,2]
[349486403,1737213048791,-500.0,0.00022333,2]
[349486404,1737213048801,-500.0,0.00022333,2]
[349486405,1737213048811,-500.0,0.00022333,2]
[349486406,1737213048823,-500.0,0.00022333,2]
[349486407,1737213048833,-500.0,0.00022333,2]
[349486408,1737213048843,-500.0,0.00022333,2]
[349486409,1737213048852,-500.0,0.00022333,2]
[349486410,1737213048861,-500.0,0.00022333,2]
[349486411,1737213048871,-500.0,0.00022333,2]
[349486412,1737213048880,-500.0,0.00022333,2]
[349486413,1737213048889,-500.0,0.00022333,2]
[349486414,1737213048898,-500.0,0.00022333,2]
[349486415,1737213048908,-500.0,0.00022333,2]
[349486416,1737213048918,-500.0,0.00022333,2]
[349486417,1737213048927,-500.0,0.00022333,2]
[349486418,1737213048936,-760.0,0.00022333,2]
[349486419,1737213048946,-639.46097246,0.00022333,4]
[349486420,1737213048956,-180.05125378,0.00022333,4]
[349486421,1737213048966,-321.75397639,0.00022333,4]
[349486422,1737213048976,-150.0,0.00022355,4]
[349486423,1737213048985,-150.0,0.00022355,4]
[349486424,1737213048995,-150.0,0.00022355,4]
[349486425,1737213049004,-150.0,0.00022355,4]
[349486426,1737213049014,-170.83,0.00022362,2]
[349486427,1737213049024,-2458.5,0.00022362,2]
[349486428,1737213049034,-1000.0,0.00022366,2]
[349486429,1737213049043,-639.46097246,0.00022377,4]
[349486430,1737213049053,-180.05125378,0.00022377,4]
[349486431,1737213049063,-321.75397639,0.00022377,4]
[349486432,1737213049078,-639.46097246,0.0002242,4]
[349486433,1737213049088,-180.05125378,0.0002242,4]
[349486434,1737213049099,-321.75397639,0.0002242,4]
[349486435,1737213049109,-150.0,0.00022448,4]
[349486436,1737213049120,-639.46097246,0.00022463,4]
[349486437,1737213049130,-180.05125378,0.00022463,4]
[349486438,1737213049140,-321.75397639,0.00022463,4]
[349486439,1737213049151,-1000.0,0.00022465,14]
[349486440,1737213049160,-150.0,0.00022495,2]
[349486441,1737213049170,-2110.0,0.000225,2]
[349486442,1737213049180,-639.46097246,0.00022507,4]
[349486443,1737213049190,-180.05125378,0.00022507,4]
[349486444,1737213049200,-321.75397639,0.00022507,4]
[349486445,1737213049211,-150.0,0.00022542,4]
[349486446,1737213049221,-639.46097246,0.0002255,4]
[349486447,1737213049231,-180.05125378,0.0002255,4]
[349486448,1737213049242,-321.75397639,0.0002255,4]
[349486449,1737213049252,-1350.0,0.00022562,7]
[349486450,1737213049262,-1350.0,0.00022562,7]
[349486451,1737213049272,-1386.27732,0.00022562,7]
[349486452,1737213049281,-1386.27732,0.00022562,7]
[349486453,1737213049291,-377.71,0.00022562,2]
[349486454,1737213049301,-9999.99,0.00022562,2]
[349486455,1737213049311,-1380.52,0.00022562,2]
[349486456,1737213049324,-393.11,0.00022562,2]
[349486457,1737213049335,-2994.89,0.00022562,2]
[349486458,1737213049345,-588.46,0.00022562,2]
[349486459,1737213049355,-1875.86,0.00022562,2]
[349486460,1737213049366,-1513.91,0.00022562,2]
[349486461,1737213049376,-150.99,0.00022562,2]
[349486462,1737213049386,-150.99,0.00022562,2]
[349486463,1737213049396,-4669.28,0.00022562,2]
[349486464,1737213049407,-499.99,0.00022562,2]
[349486465,1737213049417,-9999.99,0.00022562,2]
[349486466,1737213049427,-1313.05,0.00022562,2]
[349486467,1737213049436,-187.86,0.00022586,2]
[349486468,1737213049446,-639.46097246,0.00022593,4]
[349486469,1737213049456,-180.05125378,0.00022593,4]
[349486470,1737213049465,-321.75397639,0.00022593,4]
[349486471,1737213049475,-152.0,0.00022616,10]
[349486472,1737213049485,-150.0,0.00022635,4]
[349486473,1737213049495,-639.46097246,0.00022637,4]
[349486474,1737213049504,-180.05125378,0.00022637,4]
[349486475,1737213049514,-321.75397639,0.00022637,4]
[349486476,1737213049523,-500.0,0.00022644,2]
[349486477,1737213049532,-639.46097246,0.0002268,4]
[349486478,1737213049542,-180.05125378,0.0002268,4]
[349486479,1737213049552,-321.75397639,0.0002268,4]
[349486480,1737213049562,-400.0,0.000227,8]
[349486481,1737213049573,-650.0,0.00022712,2]
[349486482,1737213049582,-639.46097246,0.00022723,4]
[349486483,1737213049592,-180.05125378,0.00022723,4]
[349486484,1737213049601,-321.75397639,0.00022723,4]
[349486485,1737213049611,-150.0,0.00022728,4]
[349486486,1737213049620,-150.0,0.00022735,2]
[349486487,1737213049630,-1175.0,0.00022735,2]
[349486488,1737213049639,-3900.0,0.00022735,2]
[349486489,1737213049649,-1000.0,0.00022739,14]
[349486490,1737213049658,-2017.0,0.00022763,2]
[349486491,1737213049673,-1269.0,0.00022763,2]
[349486492,1737213049682,-567.0,0.00022763,2]
[349486493,1737213049692,-635.0,0.00022763,2]
[349486494,1737213049701,-1860.0,0.00022763,2]
[349486495,1737213049712,-1256.946,0.00022763,2]
[349486496,1737213049722,-2946.0,0.00022763,2]
[349486497,1737213049731,-820.0,0.00022763,2]
[349486498,1737213049742,-816.628,0.00022763,2]
[349486499,1737213049751,-639.46097246,0.00022767,4]
[349486500,1737213049761,-180.05125378,0.00022767,4]
[349486501,1737213049770,-321.75397639,0.00022767,4]
[349486502,1737213049780,-150.0,0.00022784,4]
[349486503,1737213049790,-621.91,0.000228,30]
[349486504,1737213049799,-1265.0,0.000228,8]
[349486505,1737213049809,-639.46097246,0.0002281,4]
[349486506,1737213049818,-180.05125378,0.0002281,4]
[349486507,1737213049831,-321.75397639,0.0002281,4]
[349486508,1737213049841,-150.0,0.00022821,4]
[349486509,1737213049850,-639.46097246,0.00022853,4]
[349486510,1737213049860,-180.05125378,0.00022853,4]
[349486511,1737213049870,-321.75397639,0.00022853,4]
[349486512,1737213049879,-166.65,0.00022866,2]
[349486513,1737213049888,-639.46097246,0.00022897,4]
[349486514,1737213049897,-180.05125378,0.00022897,4]
[349486515,1737213049907,-321.75397639,0.00022897,4]